fUSD/lending_fUSD_20240625
["ID","MTS","AMOUNT","RATE_DAILY","PERIOD"]
[330409603,1719353444613,-502.45850121,0.00019178,2]
[330409604,1719353444622,-15647.95,0.00019178,2]
[330409605,1719353444631,-500.0,0.00019178,2]
[330409606,1719353444641,-500.0,0.00019178,2]
[330409607,1719353444651,-500.0,0.00019178,2]
[330409608,1719353444660,-500.0,0.00019178,2]
[330409609,1719353444670,-1348.16,0.00019178,2]
[330409610,1719353444679,-961.42,0.00019178,2]
[330409611,1719353444688,-500.0,0.00019178,2]
[330409612,1719353444698,-500.0,0.00019178,2]
[330409613,1719353444708,-500.0,0.00019178,2]
[330409614,1719353444719,-500.0,0.00019178,2]
[330409615,1719353444728,-627.54,0.00019178,2]
[330409616,1719353444738,-21392.01,0.00019178,2]
[330409617,1719353444748,-500.0,0.00019178,2]
[330409618,1719353444758,-500.0,0.00019178,2]
[330409619,1719353444767,-694.78,0.00019178,2]
[330409620,1719353444777,-500.0,0.00019178,2]
[330409621,1719353444786,-688.89,0.00019178,2]
[330409622,1719353444796,-500.0,0.00019178,2]
[330409623,1719353444805,-947.15,0.00019178,2]
[330409624,1719353444815,-1149.6680394,0.00019178,2]
[330409625,1719353444846,-265.760515,0.00019178,2]
[330409626,1719353444858,-177.0914456,0.00019178,2]
[330409627,1719353444868,-242.0295544,0.00019178,2]
[330409628,1719353444880,-257.9704456,0.00019178,2]
[330409629,1719353444889,-500.0,0.00019178,2]
[330409630,1719353444899,-1975.79972008,0.00019178,2]
[330409631,1719353444910,-703.9999999,0.00019178,2]
[330409632,1719353444921,-1184.00081791,0.00019178,2]
[330409633,1719353444932,-1732.58128309,0.00019178,2]
[330409634,1719353444944,-482.27385794,0.00019178,2]
[330409635,1719353444955,-11010.66432108,0.00019178,2]
[330409636,1719353444965,-500.0,0.00019178,2]
[330409637,1719353444976,-432.94577878,0.00019178,2]
[330409638,1719353444985,-500.0,0.00019178,2]
[330409639,1719353444995,-928.07,0.00019178,2]
[330409640,1719353445004,-677.15,0.00019178,2]
[330409641,1719353445014,-1755.54,0.00019178,2]
[330409642,1719353445023,-500.0,0.00019178,2]
[330409643,1719353445032,-500.0,0.00019178,2]
[330409644,1719353445042,-500.0,0.00019178,2]
[330409645,1719353445051,-516.42,0.00019178,2]
[330409646,1719353445060,-500.0,0.00019178,2]
[330409647,1719353445070,-617.42,0.00019178,2]
[330409648,1719353445079,-500.0,0.00019178,2]
[330409649,1719353445088,-500.0,0.00019178,2]
[330409650,1719353445099,-1321.51,0.00019178,2]
[330409651,1719353445109,-500.0,0.00019178,2]
[330409652,1719353445118,-500.0,0.00019178,2]
[330409653,1719353445128,-1275.39,0.00019178,2]
[330409654,1719353445137,-500.0,0.00019178,2]
[330409655,1719353445146,-4884.38,0.00019178,2]
[330409656,1719353445156,-500.0,0.00019178,2]
[330409657,1719353445165,-543.92,0.00019178,2]
[330409658,1719353445176,-500.0,0.00019178,2]
[330409659,1719353445186,-500.0,0.00019178,2]
[330409660,1719353445196,-500.0,0.00019178,2]
[330409661,1719353445206,-500.0,0.00019178,2]
[330409662,1719353445215,-500.0,0.00019178,2]
[330409663,1719353445226,-471.90991114,0.00019178,2]
[330409664,1719353445242,-574.05008886,0.00019178,2]
[330409665,1719353445252,-563.15,0.00019178,2]
[330409666,1719353445261,-500.0,0.00019178,2]
[330409667,1719353445271,-500.0,0.00019178,2]
[330409668,1719353445281,-500.0,0.00019178,2]
[330409669,1719353445291,-500.0,0.00019178,2]
[330409670,1719353445300,-604.83,0.00019178,2]
[330409671,1719353445311,-1002.29,0.00019178,2]
[330409672,1719353445322,-500.0,0.00019178,2]
[330409673,1719353445332,-752.27,0.00019178,2]
[330409674,1719353445342,-2228.78,0.00019178,2]
[330409675,1719353445351,-138.63013084,0.00019178,2]
[330409676,1719353445379,-361.36986916,0.00019178,2]
[330409677,1719353445391,-500.0,0.00019178,2]
[330409678,1719353445401,-1298.69,0.00019178,2]
[330409679,1719353445411,-361.71000233,0.00019178,2]
[330409680,1719353445421,-500.0,0.00019178,2]
[330409681,1719353445432,-402.73012851,0.00019178,2]
[330409714,1719353446494,-217.90047204,0.00018877,2]
[330409716,1719353446504,-97.26987149,0.00019178,2]
[330409718,1719353446514,-13.57930097,0.00019178,2]
[330409720,1719353446525,-749.69069903,0.00019178,2]
[330409722,1719353446535,-615.7,0.00019178,2]
[330409724,1719353446544,-382.18430097,0.00019178,2]
[330409727,1719353446555,-117.81569903,0.00019178,2]
[330409729,1719353446565,-619.56,0.00019178,2]
[330409731,1719353446576,-458.34687703,0.00019178,2]
[330409733,1719353446587,-52.76312297,0.00019178,2]
[330409735,1719353446598,-500.0,0.00019178,2]
[330409737,1719353446607,-287.88080248,0.00019178,2]
[330409739,1719353446623,-988.96919752,0.00019178,2]
[330409742,1719353446633,-34.85397329,0.00019178,2]
[330409744,1719353446644,-411.10214497,0.00019178,2]
[330409748,1719353446672,-54.04388174,0.00019178,2]
[330409750,1719353446682,-505.36218427,0.00019178,2]
[330409752,1719353446693,-301.616,0.00019178,2]
[330409754,1719353446704,-301.92181573,0.00019178,2]
[330409756,1719353446713,-665.93,0.00019178,2]
[330409758,1719353446724,-500.0,0.00019178,2]
[330409760,1719353446733,-669.94,0.00019178,2]
[330409762,1719353446743,-4074.54,0.00019178,2]
[330409764,1719353446752,-502.6,0.00019178,2]
[330409766,1719353446761,-500.0,0.00019178,2]
[330409768,1719353446771,-500.0,0.00019178,2]
[330409770,1719353446781,-500.0,0.00019178,2]
[330409772,1719353446791,-500.0,0.00019178,2]
[330409774,1719353446800,-696.51,0.00019178,2]
[330409776,1719353446809,-638.98385364,0.00019178,2]
[330409779,1719353446819,-5336.22,0.00019178,2]
[330409781,1719353446828,-550.26,0.00019178,2]
[330409783,1719353446838,-3122.83,0.00019178,2]
[330409785,1719353446847,-500.0,0.00019178,2]
[330409787,1719353446856,-957.89,0.00019178,2]
[330409789,1719353446865,-240.93821001,0.00019178,2]
[330409791,1719353446880,-500.0,0.00019178,2]
[330409793,1719353446890,-500.0,0.00019178,2]
[330409796,1719353446900,-8226.86,0.00019178,2]
[330409798,1719353446910,-500.0,0.00019178,2]
[330409800,1719353446920,-500.0,0.00019178,2]
[330409802,1719353446930,-862.52,0.00019178,2]
[330409803,1719353446940,-872.18,0.00019178,2]
[330409804,1719353446949,-500.0,0.00019178,2]
[330409805,1719353446959,-579.37,0.00019178,2]
[330409806,1719353446968,-639.87,0.00019178,2]
[330409807,1719353446978,-4492.3,0.00019178,2]
[330409808,1719353446987,-500.0,0.00019178,2]
[330409809,1719353446997,-500.0,0.00019178,2]
[330409810,1719353447007,-641.23,0.00019178,2]
[330409811,1719353447017,-654.79,0.00019178,2]
[330409812,1719353447027,-500.0,0.00019178,2]
[330409813,1719353447036,-2376.43,0.00019178,2]
[330409814,1719353447046,-1513.53,0.00019178,2]
[330409815,1719353447056,-822.13,0.00019178,2]
[330409816,1719353447066,-585.95,0.00019178,2]
[330409817,1719353447075,-999.15,0.00019178,2]
[330409819,1719353447085,-500.0,0.00019178,2]
[330409821,1719353447098,-16067.0,0.00019178,2]
[330409823,1719353447108,-2326.4,0.00019178,2]
[330409825,1719353447118,-500.0,0.00019178,2]
[330409828,1719353447128,-662.99,0.00019178,2]
[330409830,1719353447138,-500.0,0.00019178,2]
[330409832,1719353447148,-633.34,0.00019178,2]
[330409834,1719353447157,-500.0,0.00019178,2]
[330409836,1719353447167,-440.99065839,0.00019178,2]
[330409838,1719353447176,-500.0,0.00019178,2]
[330409840,1719353447186,-500.0,0.00019178,2]
[330409842,1719353447195,-1763.46,0.00019178,2]
[330409844,1719353447205,-251.56301167,0.00019178,2]
[330409846,1719353447215,-722.98,0.00019178,2]
[330409848,1719353447227,-500.0,0.00019178,2]
[330409850,1719353447239,-500.0,0.00019178,2]
[330409852,1719353447250,-800.85,0.00019178,2]
[330409854,1719353447259,-961.45,0.00019178,2]
[330409856,1719353447269,-1851.38,0.00019178,2]
[330409858,1719353447280,-573.73,0.00019178,2]
[330409860,1719353447290,-500.0,0.00019178,2]
[330409862,1719353447300,-2941.66,0.00019178,2]
[330409865,1719353447309,-1290.56,0.00019178,2]
[330409867,1719353447323,-1143.8,0.00019178,2]
[330409869,1719353447334,-500.0,0.00019178,2]
[330409871,1719353447344,-512.29,0.00019178,2]
[330409873,1719353447354,-3334.1,0.00019178,2]
[330409875,1719353447363,-830.24,0.00019178,2]
[330409877,1719353447372,-4435.93,0.00019178,2]
[330409879,1719353447382,-874.38,0.00019178,2]
[330409881,1719353447395,-1921.55,0.00019178,2]
[330409883,1719353447405,-500.0,0.00019178,2]
[330409885,1719353447415,-1300.39,0.00019178,2]
[330409888,1719353447424,-500.0,0.00019178,2]
[330409890,1719353447435,-870.56,0.00019178,2]
[330409892,1719353447444,-500.0,0.00019178,2]
[330409894,1719353447454,-945.04,0.00019178,2]
[330409896,1719353447464,-500.0,0.00019178,2]
[330409898,1719353447474,-500.0,0.00019178,2]
[330409900,1719353447484,-500.0,0.00019178,2]
[330409902,1719353447494,-4795.74,0.00019178,2]
[330409904,1719353447504,-500.0,0.00019178,2]
[330409906,1719353447514,-500.0,0.00019178,2]
[330409908,1719353447524,-1103.9,0.00019178,2]
[330409910,1719353447535,-901.46,0.00019178,2]
[330409912,1719353447544,-1459.16,0.00019178,2]
[330409914,1719353447554,-500.0,0.00019178,2]
[330409917,1719353447563,-500.0,0.00019178,2]
[330409919,1719353447573,-178.82715435,0.00019178,2]
[330409921,1719353447583,-500.0,0.00019178,2]
[330409923,1719353447592,-565.09,0.00019178,2]
[330409925,1719353447602,-3605.88,0.00019178,2]
[330409927,1719353447612,-500.0,0.00019178,2]
[330409929,1719353447622,-500.0,0.00019178,2]
[330409931,1719353447632,-1081.43,0.00019178,2]
[330409933,1719353447641,-500.0,0.00019178,2]
[330409935,1719353447651,-647.5,0.00019178,2]
[330409937,1719353447661,-2801.22,0.00019178,2]
[330409939,1719353447671,-500.0,0.00019178,2]
[330409941,1719353447680,-704.17,0.00019178,2]
[330409943,1719353447690,-500.0,0.00019178,2]
[330409945,1719353447699,-1277.88,0.00019178,2]
[330409947,1719353447708,-500.0,0.00019178,2]
[330409949,1719353447719,-500.0,0.00019178,2]
[330409952,1719353447729,-500.0,0.00019178,2]
[330409954,1719353447739,-500.0,0.00019178,2]
[330409956,1719353447748,-500.0,0.00019178,2]
[330409957,1719353447757,-675.45,0.00019178,2]
[330409958,1719353447767,-500.0,0.00019178,2]
[330409959,1719353447776,-500.0,0.00019178,2]
[330409960,1719353447786,-530.91708682,0.00019178,2]
[330409961,1719353447796,-849.59,0.00019178,2]
[330409962,1719353447806,-937.37,0.00019178,2]
[330409963,1719353447815,-2029.16,0.00019178,2]
[330409964,1719353447825,-500.0,0.00019178,2]
[330409965,1719353447835,-822.33,0.00019178,2]
[330409966,1719353447845,-500.0,0.00019178,2]
[330409967,1719353447855,-543.19,0.00019178,2]
[330409968,1719353447865,-1692.04,0.00019178,2]
[330409969,1719353447875,-531.55,0.00019178,2]
[330409970,1719353447884,-759.76,0.00019178,2]
[330409971,1719353447894,-500.0,0.00019178,2]
[330409972,1719353447903,-500.0,0.00019178,2]
[330409973,1719353447914,-1706.98,0.00019178,2]
[330409974,1719353447926,-1221.46,0.00019178,2]
[330409975,1719353447936,-1258.52,0.00019178,2]
[330409976,1719353447946,-500.0,0.00019178,2]
[330409977,1719353447956,-500.0,0.00019178,2]
[330409978,1719353447966,-17603.95,0.00019178,2]
[330409979,1719353447977,-1982.89,0.00019178,2]
[330409980,1719353447987,-877.16,0.00019178,2]
[330409981,1719353447998,-9331.76,0.00019178,2]
[330409982,1719353448007,-500.0,0.00019178,2]
[330409983,1719353448018,-536.54,0.00019178,2]
[330409984,1719353448029,-974.81,0.00019178,2]
[330409985,1719353448039,-925.83,0.00019178,2]
[330409986,1719353448049,-560.09,0.00019178,2]
[330409987,1719353448059,-551.55,0.00019178,2]
[330409988,1719353448068,-685.08,0.00019178,2]
[330409989,1719353448078,-3466.13,0.00019178,2]
[330409990,1719353448088,-500.0,0.00019178,2]
[330409991,1719353448098,-4832.03,0.00019178,2]
[330409992,1719353448108,-540.27,0.00019178,2]
[330409993,1719353448118,-1928.39,0.00019178,2]
[330409994,1719353448127,-1123.24,0.00019178,2]
[330409995,1719353448138,-940.08,0.00019178,2]
[330409996,1719353448147,-1735.63,0.00019178,2]
[330409997,1719353448157,-500.0,0.00019178,2]
[330409998,1719353448167,-1401.27,0.00019178,2]
[330409999,1719353448176,-500.0,0.00019178,2]
[330410000,1719353448186,-508.47,0.00019178,2]
[330410001,1719353448196,-1120.54,0.00019178,2]
[330410002,1719353448206,-6546.2,0.00019178,2]
[330410003,1719353448216,-1200.1,0.00019178,2]
[330410004,1719353448226,-15110.72,0.00019178,2]
[330410005,1719353448239,-500.0,0.00019178,2]
[330410006,1719353448249,-884.29,0.00019178,2]
[330410007,1719353448259,-936.45,0.00019178,2]
[330410008,1719353448269,-1706.67,0.00019178,2]
[330410009,1719353448280,-500.0,0.00019178,2]
[330410010,1719353448289,-567.04,0.00019178,2]
[330410011,1719353448299,-500.0,0.00019178,2]
[330410012,1719353448308,-650.61,0.00019178,2]
[330410013,1719353448321,-563.18,0.00019178,2]
[330410014,1719353448331,-1810.29,0.00019178,2]
[330410015,1719353448536,-736.96,0.00019178,2]
[330410016,1719353448547,-4702.97,0.00019178,2]
[330410017,1719353448556,-4133.39,0.00019178,2]
[330410018,1719353448566,-10070.43,0.00019178,2]
[330410019,1719353448576,-648.77,0.00019178,2]
[330410020,1719353448585,-789.9,0.00019178,2]
[330410021,1719353448595,-250.0,0.00019178,2]
[330410022,1719353448605,-565.62416049,0.00019331,2]
[330410023,1719353448615,-526.2798675,0.00019338,2]
[330410024,1719353448624,-167.538,0.00019352,2]
[330410025,1719353448634,-5225.0674523,0.00019352,2]
[330410026,1719353448644,-181.04155216,0.00019352,2]
[330410027,1719353448654,-364.67560962,0.00019441,2]
[330410028,1719353448664,-576.0,0.00019452,2]
[330410029,1719353448673,-3049.73,0.00019452,2]
[330410030,1719353448683,-1326.61,0.00019452,2]
[330410031,1719353448692,-2150.13,0.00019452,2]
[330410032,1719353448701,-831.49,0.00019452,2]
[330410033,1719353448711,-500.0,0.00019452,2]
[330410034,1719353448722,-7133.34,0.00019452,2]
[330410035,1719353448732,-500.0,0.00019452,2]
[330410036,1719353448742,-500.0,0.00019452,2]
[330410037,1719353448751,-500.0,0.00019452,2]
[330410038,1719353448761,-500.0,0.00019452,2]
[330410039,1719353448771,-500.0,0.00019452,2]
[330410040,1719353448781,-500.0,0.00019452,2]
[330410041,1719353448791,-500.0,0.00019452,2]
[330410042,1719353448801,-304.01939564,0.00019452,2]
[330410043,1719353448812,-500.0,0.00019452,2]
[330410044,1719353448822,-3326.56,0.00019452,2]
[330410045,1719353448831,-500.0,0.00019452,2]
[330410046,1719353448841,-500.0,0.00019452,2]
[330410047,1719353448850,-500.0,0.00019452,2]
[330410048,1719353448860,-500.0,0.00019452,2]
[330410049,1719353448869,-500.0,0.00019452,2]
[330410050,1719353448880,-500.9,0.00019452,2]
[330410051,1719353448889,-500.0,0.00019452,2]
[330410052,1719353448899,-500.0,0.00019452,2]
[330410053,1719353448908,-500.0,0.00019452,2]
[330410054,1719353448916,-500.0,0.00019452,2]
[330410055,1719353448926,-500.0,0.00019452,2]
[330410056,1719353448936,-500.0,0.00019452,2]
[330410057,1719353448946,-500.0,0.00019452,2]
[330410058,1719353448956,-437.82418324,0.00019452,2]
[330410059,1719353448965,-500.0,0.00019452,2]
[330410060,1719353448976,-245.97059447,0.00019452,2]
[330410061,1719353448985,-500.0,0.00019452,2]
[330410062,1719353448994,-901.1,0.00019452,2]
[330410063,1719353449004,-500.0,0.00019452,2]
[330410064,1719353449014,-593.46,0.00019452,2]
[330410065,1719353449024,-500.0,0.00019452,2]
[330410066,1719353449033,-500.0,0.00019452,2]
[330410067,1719353449042,-500.0,0.00019452,2]
[330410068,1719353449053,-500.0,0.00019452,2]
[330410069,1719353449062,-500.0,0.00019452,2]
[330410070,1719353449072,-500.0,0.00019452,2]
[330410071,1719353449082,-500.0,0.00019452,2]
[330410072,1719353449092,-500.0,0.00019452,2]
[330410073,1719353449103,-500.0,0.00019452,2]
[330410074,1719353449112,-500.0,0.00019452,2]
[330410075,1719353449122,-500.0,0.00019452,2]
[330410076,1719353449131,-597.96,0.00019452,2]
[330410077,1719353449141,-500.0,0.00019452,2]
[330410078,1719353449150,-500.0,0.00019452,2]
[330410079,1719353449160,-500.0,0.00019452,2]
[330410080,1719353449169,-2164.47,0.00019452,2]
[330410081,1719353449179,-500.0,0.00019452,2]
[330410082,1719353449188,-500.0,0.00019452,2]
[330410083,1719353449198,-658.64,0.00019452,2]
[330410084,1719353449212,-500.0,0.00019452,2]
[330410085,1719353449224,-1211.81,0.00019452,2]
[330410086,1719353449236,-500.0,0.00019452,2]
[330410087,1719353449252,-500.0,0.00019452,2]
[330410088,1719353449262,-500.0,0.00019452,2]
[330410089,1719353449272,-500.0,0.00019452,2]
[330410090,1719353449282,-502.29,0.00019452,2]
[330410091,1719353449293,-500.0,0.00019452,2]
[330410092,1719353449303,-534.87178314,0.00019452,2]
[330410093,1719353449312,-500.0,0.00019452,2]
[330410094,1719353449324,-500.0,0.00019452,2]
[330410095,1719353449334,-500.0,0.00019452,2]
[330410096,1719353449343,-500.0,0.00019452,2]
[330410097,1719353449353,-500.0,0.00019452,2]
[330410098,1719353449363,-500.0,0.00019452,2]
[330410099,1719353449373,-1548.75,0.00019452,2]
[330410100,1719353449383,-1965.0,0.00019452,2]
[330410101,1719353449392,-500.0,0.00019452,2]
[330410102,1719353449402,-678.75,0.00019452,2]
[330410103,1719353449412,-500.0,0.00019452,2]
[330410104,1719353449421,-726.6,0.00019452,2]
[330410105,1719353449431,-1087.36,0.00019452,2]
[330410106,1719353449440,-500.0,0.00019452,2]
[330410107,1719353449450,-593.01,0.00019452,2]
[330410108,1719353449459,-500.0,0.00019452,2]
[330410109,1719353449470,-580.84,0.00019452,2]
[330410110,1719353449482,-1202.08,0.00019452,2]
[330410111,1719353449491,-500.0,0.00019452,2]
[330410112,1719353449500,-500.0,0.00019452,2]
[330410113,1719353449514,-796.35,0.00019452,2]
[330410114,1719353449524,-500.0,0.00019452,2]
[330410115,1719353449534,-500.0,0.00019452,2]
[330410116,1719353449543,-500.0,0.00019452,2]
[330410117,1719353449553,-500.0,0.00019452,2]
[330410118,1719353449563,-1101.42,0.00019452,2]
[330410119,1719353449573,-500.0,0.00019452,2]
[330410120,1719353449582,-500.0,0.00019452,2]
[330410121,1719353449592,-500.0,0.00019452,2]
[330410122,1719353449601,-563.78,0.00019452,2]
[330410123,1719353449611,-500.0,0.00019452,2]
[330410124,1719353449620,-2404.73,0.00019452,2]
[330410125,1719353449630,-1300.67,0.00019452,2]
[330410126,1719353449639,-610.71,0.00019452,2]
[330410127,1719353449649,-500.0,0.00019452,2]
[330410128,1719353449658,-500.0,0.00019452,2]
[330410129,1719353449667,-4740.26,0.00019452,2]
[330410130,1719353449676,-500.0,0.00019452,2]
[330410131,1719353449686,-500.0,0.00019452,2]
[330410132,1719353449695,-1043.3,0.00019452,2]
[330410133,1719353449705,-500.0,0.00019452,2]
[330410134,1719353449714,-500.0,0.00019452,2]
[330410135,1719353449726,-863.15,0.00019452,2]
[330410136,1719353449735,-500.0,0.00019452,2]
[330410137,1719353449744,-500.0,0.00019452,2]
[330410138,1719353449753,-500.0,0.00019452,2]
[330410139,1719353449762,-688.8,0.00019452,2]
[330410140,1719353449772,-500.0,0.00019452,2]
[330410141,1719353449781,-500.0,0.00019452,2]
[330410142,1719353449790,-500.0,0.00019452,2]
[330410143,1719353449799,-500.0,0.00019452,2]
[330410144,1719353449808,-500.0,0.00019452,2]
[330410145,1719353449818,-500.0,0.00019452,2]
[330410146,1719353449827,-500.0,0.00019452,2]
[330410147,1719353449837,-1766.19,0.00019452,2]
[330410148,1719353449847,-500.0,0.00019452,2]
[330410149,1719353449857,-500.0,0.00019452,2]
[330410150,1719353449867,-642.83,0.00019452,2]
[330410151,1719353449876,-774.03,0.00019452,2]
[330410152,1719353449885,-511.15,0.00019452,2]
[330410153,1719353449895,-598.3,0.00019452,2]
[330410154,1719353449905,-500.0,0.00019452,2]
[330410155,1719353449915,-1074.21,0.00019452,2]
[330410156,1719353449924,-660.38,0.00019452,2]
[330410157,1719353449934,-1659.78,0.00019452,2]
[330410158,1719353449943,-1435.94,0.00019452,2]
[330410159,1719353449952,-500.0,0.00019452,2]
[330410160,1719353449962,-500.0,0.00019452,2]
[330410161,1719353449972,-1151.84,0.00019452,2]
[330410162,1719353449981,-500.0,0.00019452,2]
[330410163,1719353449990,-732.51,0.00019452,2]
[330410164,1719353450000,-500.0,0.00019452,2]
[330410165,1719353450011,-500.0,0.00019452,2]
[330410166,1719353450020,-1026.26,0.00019452,2]
[330410167,1719353450030,-1044.11,0.00019452,2]
[330410168,1719353450039,-500.0,0.00019452,2]
[330410169,1719353450048,-500.0,0.00019452,2]
[330410170,1719353450058,-851.17,0.00019452,2]
[330410171,1719353450067,-3326.37,0.00019452,2]
[330410172,1719353450077,-500.0,0.00019452,2]
[330410173,1719353450090,-500.0,0.00019452,2]
[330410174,1719353450103,-500.0,0.00019452,2]
[330410175,1719353450112,-781.68,0.00019452,2]
[330410176,1719353450122,-819.68,0.00019452,2]
[330410177,1719353450131,-500.0,0.00019452,2]
[330410178,1719353450141,-654.83,0.00019452,2]
[330410179,1719353450150,-1080.79,0.00019452,2]
[330410180,1719353450160,-560.46,0.00019452,2]
[330410181,1719353450169,-500.0,0.00019452,2]
[330410182,1719353450179,-500.0,0.00019452,2]
[330410183,1719353450188,-500.0,0.00019452,2]
[330410184,1719353450197,-781.5,0.00019452,2]
[330410185,1719353450207,-500.0,0.00019452,2]
[330410186,1719353450216,-500.0,0.00019452,2]
[330410187,1719353450227,-500.0,0.00019452,2]
[330410188,1719353450236,-1131.78,0.00019452,2]
[330410189,1719353450249,-500.0,0.00019452,2]
[330410190,1719353450261,-500.0,0.00019452,2]
[330410191,1719353450270,-500.0,0.00019452,2]
[330410192,1719353450279,-572.46,0.00019452,2]
[330410193,1719353450290,-503.19,0.00019452,2]
[330410194,1719353450300,-1051.21,0.00019452,2]
[330410195,1719353450309,-568.98,0.00019452,2]
[330410196,1719353450318,-500.0,0.00019452,2]
[330410197,1719353450329,-10532.4,0.00019452,2]
[330410198,1719353450339,-500.0,0.00019452,2]
[330410199,1719353450348,-3268.02,0.00019452,2]
[330410200,1719353450357,-500.0,0.00019452,2]
[330410201,1719353450367,-500.0,0.00019452,2]
[330410202,1719353450377,-608.69,0.00019452,2]
[330410203,1719353450386,-1824.51,0.00019452,2]
[330410204,1719353450395,-500.0,0.00019452,2]
[330410205,1719353450405,-500.0,0.00019452,2]
[330410206,1719353450414,-500.0,0.00019452,2]
[330410207,1719353450423,-1257.0,0.00019452,2]
[330410208,1719353450433,-540.28,0.00019452,2]
[330410209,1719353450442,-312.19334315,0.00019452,2]
[330410210,1719353450452,-500.0,0.00019452,2]
[330410211,1719353450461,-500.0,0.00019452,2]
[330410212,1719353450470,-500.0,0.00019452,2]
[330410213,1719353450481,-500.0,0.00019452,2]
[330410214,1719353450490,-622.4397623,0.00019452,2]
[330410215,1719353450500,-742.98,0.00019452,2]
[330410216,1719353450510,-500.0,0.00019452,2]
[330410217,1719353450519,-500.0,0.00019452,2]
[330410218,1719353450529,-500.0,0.00019452,2]
[330410219,1719353450538,-500.0,0.00019452,2]
[330410220,1719353450548,-500.0,0.00019452,2]
[330410221,1719353450557,-6322.88,0.00019452,2]
[330410222,1719353450566,-500.0,0.00019452,2]
[330410223,1719353450575,-588.8,0.00019452,2]
[330410224,1719353450585,-1091.88,0.00019452,2]
[330410225,1719353450594,-500.0,0.00019452,2]
[330410226,1719353450603,-501.8,0.00019452,2]
[330410227,1719353450613,-500.0,0.00019452,2]
[330410228,1719353450622,-500.0,0.00019452,2]
[330410229,1719353450632,-815.35,0.00019452,2]
[330410230,1719353450641,-500.0,0.00019452,2]
[330410231,1719353450650,-500.0,0.00019452,2]
[330410232,1719353450660,-882.94,0.00019452,2]
[330410233,1719353450669,-500.0,0.00019452,2]
[330410234,1719353450679,-500.0,0.00019452,2]
[330410235,1719353450688,-500.0,0.00019452,2]
[330410236,1719353450697,-1325.52,0.00019452,2]
[330410237,1719353450707,-500.51,0.00019452,2]
[330410238,1719353450716,-1142.82,0.00019452,2]
[330410239,1719353450726,-828.99,0.00019452,2]
[330410240,1719353450735,-500.0,0.00019452,2]
[330410241,1719353450745,-500.0,0.00019452,2]
[330410242,1719353450754,-500.0,0.00019452,2]
[330410243,1719353450763,-500.0,0.00019452,2]
[330410244,1719353450773,-630.0,0.00019452,2]
[330410245,1719353450782,-1016.55,0.00019452,2]
[330410246,1719353450792,-551.57,0.00019452,2]
[330410247,1719353450802,-271.55404433,0.00019452,2]
[330410248,1719353450811,-796.94,0.00019452,2]
[330410249,1719353450820,-500.0,0.00019452,2]
[330410250,1719353450831,-1130.97,0.00019452,2]
[330410251,1719353450840,-500.0,0.00019452,2]
[330410252,1719353450850,-500.0,0.00019452,2]
[330410253,1719353450859,-1447.63,0.00019452,2]